[Event "WTCC-50 2018"]
[Site "Radebeul"]
[Date "2018.07.09"]
[Round "3"]
[White "Schnegelsberg, Karl Heinz"]
[Black "Schoeneberg, Manfred"]
[Result "1/2-1/2"]
[ECO "A05"]
[WhiteElo "2042"]
[BlackElo "2199"]
[Annotator "NA"]
[PlyCount "125"]
[EventDate "2018.07.07"]
[EventType "team-tourn"]
[EventCountry "GER"]
[SourceTitle "playchess.com"]
[Source "ChessBase"]
[SourceQuality "1"]
[TimeControl "40/5400+30:1800+30"]

1. Nf3 {[%emt 0:00:00]} Nf6 {[%emt 0:02:30]} 2. g3 {[%emt 0:00:00]} g6 {[%emt 0:00:30]} 3. d3 {[%emt 0:00:17]} Bg7 {[%emt 0:00:30]} 4. e4 {[%emt 0:00:09]} d6 {[%emt 0:00:27]} 5. Bg2 {[%emt 0:00:05]} O-O {[%emt 0:00:06]} 6. O-O {[%emt 0:00:10]} c5 {[%emt 0:02:56]} 7. Nbd2 {[%emt 0:02:29]} Nc6 {[%emt 0:00:38]} 8. Nc4 {[%emt 0:01:41]} Bg4 {[%emt 0:03:42]} 9. h3 {[%emt 0:02:14]} Be6 {[%emt 0:00:49]} 10. Nfd2 {[%emt 0:08:41]} d5 {[%emt 0:04:35]} 11. Ne3 {[%emt 0:00:54]} d4 {[%emt 0:00:44]} 12. Nec4 {[%emt 0:09:10]} b5 {[%emt 0:05:22]} 13. Na3 {[%emt 0:00:03]} a6 {[%emt 0:01:58]} 14. f4 {[%emt 0:03:59]} Rc8 {[%emt 0:06:42]} 15. Kh2 {[%emt 0:04:53]} c4 {[%emt 0:04:40]} 16. e5 {[%emt 0:06:54]} Nd7 {[%emt 0:14:27]} 17. dxc4 {[%emt 0:01:46]} b4 {[%emt 0:01:32]} 18. Nab1 {[%emt 0:00:18]} Nb6 {[%emt 0:06:01]} 19. b3 {[%emt 0:01:04]} d3 {[%emt 0:03:53]} 20. Bb2 {[%emt 0:00:17]} dxc2 {[%emt 0:04:55]} 21. Qxc2 {[%emt 0:01:51]} Qc7 {[%emt 0:02:24]} 22. Nf3 {[%emt 0:05:07]} Rfd8 {[%emt 0:03:14]} 23. Nbd2 {[%emt 0:01:15]} a5 {[%emt 0:00:35]} 24. Ne4 {[%emt 0:00:52]} a4 {[%emt 0:02:13]} 25. Rad1 {[%emt 0:03:21]} h6 {[%emt 0:06:31]} 26. Rfe1 {[%emt 0:02:30]} Bf5 {[%emt 0:03:55]} 27. Qe2 {[%emt 0:05:57]} axb3 {[%emt 0:01:29]} 28. axb3 {[%emt 0:00:07]} Ra8 {[%emt 0:05:44]} 29. Ra1 {[%emt 0:04:14]} Rac8 {[%emt 0:05:35]} 30. Qe3 {[%emt 0:06:03]} Bxe4 {[%emt 0:00:59]} 31. Qxe4 {[%emt 0:00:10]} e6 {[%emt 0:00:10]} 32. Nd4 {[%emt 0:02:15]} Nxd4 {[%emt 0:00:28]} 33. Bxd4 {[%emt 0:00:08]} Bf8 {[%emt 0:00:40]} 34. g4 {[%emt 0:09:37]} Bc5 {[%emt 0:02:37]} 35. Be3 {[%emt 0:01:37]} Nd7 {[%emt 0:01:01]} 36. Red1 {[%emt 0:03:57]} Kg7 {[%emt 0:01:36]} 37. Bc1 {[%emt 0:03:04]} Nb6 {[%emt 0:01:37]} 38. Bb2 {[%emt 0:00:45]} Rxd1 {[%emt 0:00:07]} 39. Rxd1 {[%emt 0:00:04]} Rd8 {[%emt 0:00:13]} 40. Rd6 {[%emt 0:01:13]} Kh7 {[%emt 0:00:54]} 41. Rc6 {[%emt 0:31:44]} Qe7 {[%emt 0:30:08]} 42. f5 {[%emt 0:02:52]} Rd2 {[%emt 0:00:00]} 43. f6 {[%emt 0:00:00]} Qd7 {[%emt 0:00:00]} 44. Rxc5 {[%emt 0:00:00]} Rxb2 {[%emt 0:00:00]} 45. Rb5 {[%emt 0:00:00]} Nd5 {[%emt 0:00:00]} 46. Qd4 {[%emt 0:00:00]} Re2 {[%emt 0:00:00]} 47. Rxb4 {[%emt 0:00:00]} Nxf6 {[%emt 0:00:00]} 48. c5 {[%emt 0:00:00]} Qc6 {[%emt 0:00:00]} 49. Qg1 {[%emt 0:00:00]} Nd5 {[%emt 0:00:00]} 50. Re4 {[%emt 0:00:00]} Rd2 {[%emt 0:00:00]} 51. Kh1 {[%emt 0:00:00]} Nc3 {[%emt 0:00:00]} 52. Re1 {[%emt 0:00:00]} Nd5 {[%emt 0:00:00]} 53. b4 {[%emt 0:04:37]} Qa4 {[%emt 0:01:23]} 54. Rc1 {[%emt 0:04:05]} Qa3 {[%emt 0:02:05]} 55. Qe1 {[%emt 0:01:47]} Rxg2 {[%emt 0:00:27]} 56. Kxg2 {[%emt 0:00:10]} Nf4+ {[%emt 0:00:08]} 57. Kg1 {[%emt 0:00:50]} Qxh3 {[%emt 0:02:28]} 58. Qf2 {[%emt 0:01:20]} Qxg4+ {[%emt 0:00:22]} 59. Kf1 {[%emt 0:00:08]} Qh3+ {[%emt 0:00:21]} 60. Kg1 {[%emt 0:00:37]} Qg4+ {[%emt 0:00:13]} 61. Kf1 {[%emt 0:01:04]} Qh3+ {[%emt 0:00:15]} 62. Kg1 {[%emt 0:00:31]} Qg4+ {[%emt 0:01:14]} 63. Kf1 {[%emt 0:00:05]} 1/2-1/2

[Event "WTCC-50 2018"]
[Site "Radebeul"]
[Date "2018.07.09"]
[Round "3"]
[White "Marwitz, Tino"]
[Black "Brueggemann, Joachim"]
[Result "0-1"]
[ECO "E21"]
[WhiteElo "2031"]
[BlackElo "2293"]
[Annotator "NA"]
[PlyCount "106"]
[EventDate "2018.07.07"]
[EventType "team-tourn"]
[EventCountry "GER"]
[SourceTitle "playchess.com"]
[Source "ChessBase"]
[SourceQuality "1"]
[TimeControl "40/5400+30:1800+30"]

1. d4 {[%emt 0:00:00]} Nf6 {[%emt 0:00:00]} 2. c4 {[%emt 0:00:00]} e6 {[%emt 0:00:00]} 3. Nf3 {[%emt 0:00:00]} Bb4+ {[%emt 0:00:00]} 4. Nc3 {[%emt 0:00:18]} d6 {[%emt 0:00:42]} 5. g3 {[%emt 0:02:23]} O-O {[%emt 0:00:42]} 6. Bg2 {[%emt 0:00:05]} Qe7 {[%emt 0:00:38]} 7. O-O {[%emt 0:00:09] E20: Nimzo-Indian: 4 g3 and 4 f3} Bxc3 {[%emt 0:00:53]} 8. bxc3 {[%emt 0:00:05]} e5 {[%emt 0:02:27]} 9. dxe5 $146 {[%emt 0:02:44]} ({Predecessor:} 9. Nd2 e4 10. Nb3 Re8 11. c5 dxc5 12. Ba3 b6 13. dxc5 Qe5 {1-0 (51) Brodsky,M (2564)-Ernst,S (2473) Hoogeveen 2005}) 9... dxe5 {[%emt 0:00:03]} 10. Qb3 {[%emt 0:00:09]} Re8 {[%emt 0:06:45]} 11. Ba3 {[%emt 0:00:22]} c5 {[%emt 0:01:21]} 12. e3 $2 {[%emt 0:02:25]} (12. Rfd1 $11) 12... Na6 {[%emt 0:01:21]} 13. Rab1 {[%emt 0:00:51]} (13. e4 $1 $11 {bleibt in der Remisbreite.}) 13... Rb8 {[%emt 0:00:19]} 14. Qc2 {[%emt 0:02:58]} Qe6 {[%emt 0:09:25]} 15. Rfd1 {[%emt 0:06:46]} h6 {[%emt 0:06:59]} (15... Qf5 $5 {[%cal Rf5c2]} 16. Ne1 Qxc2 17. Nxc2 e4 $15) 16. Nd2 {[%emt 0:10:03]} e4 {[%emt 0:01:09]} 17. Nb3 {[%emt 0:02:23]} Qe5 {[%emt 0:02:37]} 18. Na5 {[%emt 0:04:06]} Bg4 {[%emt 0:02:16]} 19. Rd2 {[%emt 0:02:44]} Qc7 {[%emt 0:01:45]} 20. Nb3 {[%emt 0:00:45]} b6 {[%emt 0:03:23]} 21. h3 {[%emt 0:01:11]} Bh5 {[%emt 0:01:24]} 22. Nc1 {[%emt 0:01:30]} Rbd8 {[%emt 0:03:13]} 23. Rxd8 {[%emt 0:04:44]} Rxd8 {[%emt 0:01:41]} 24. Ne2 {[%emt 0:00:47]} Bxe2 {[%emt 0:02:18]} 25. Qxe2 {[%emt 0:00:12]} Qd7 {[%emt 0:00:42]} 26. Re1 {[%emt 0:04:34]} Nb8 {[%emt 0:00:23]} 27. f3 {[%emt 0:01:16]} Nc6 {[%emt 0:01:26]} 28. fxe4 {[%emt 0:02:48]} Ne5 {[%emt 0:00:10]} 29. Bc1 {[%emt 0:02:59]} Qa4 {[%emt 0:04:28]} 30. Rf1 {[%emt 0:04:35]} Qxc4 {[%emt 0:00:24]} 31. Qxc4 {[%emt 0:00:17]} Nxc4 {[%emt 0:00:02]} 32. e5 {[%emt 0:00:47]} Nxe5 {[%emt 0:01:00]} 33. e4 {[%emt 0:00:30]} Rd3 {[%emt 0:05:22]} 34. Bf4 {[%emt 0:00:49]} Nfd7 {[%emt 0:00:22]} 35. h4 {[%emt 0:01:59]} Rxc3 {[%emt 0:01:40]} 36. Rd1 {[%emt 0:01:17]} Rd3 {[%emt 0:01:57]} 37. Rxd3 {[%emt 0:01:44]} Nxd3 {[%emt 0:00:02]} 38. Bd2 {[%emt 0:00:26]} Kf8 {[%emt 0:01:04]} 39. Kf1 {[%emt 0:00:27]} Ke7 {[%emt 0:00:40]} 40. Ke2 {[%emt 0:00:31]} N3e5 {[%emt 0:00:08]} 41. Bc3 {[%emt 0:30:36]} Kd6 {[%emt 0:30:19]} 42. Bh3 {[%emt 0:01:07]} Nb8 {[%emt 0:01:23]} 43. g4 {[%emt 0:01:52]} g5 {[%emt 0:02:10]} 44. h5 $19 {[%emt 0:01:06]} Nbc6 {[%emt 0:00:46]} 45. Kd1 {[%emt 0:01:44]} b5 {[%emt 0:00:27]} 46. Kc2 {[%emt 0:00:15]} b4 {[%emt 0:01:54]} 47. Be1 {[%emt 0:01:22]} Nd4+ {[%emt 0:00:31]} 48. Kd1 {[%emt 0:00:42]} a5 {[%emt 0:00:30]} 49. Bg3 {[%emt 0:00:58]} c4 {[%emt 0:00:45]} 50. Bf1 {[%emt 0:00:19]} c3 {[%emt 0:00:06]} 51. Ba6 {[%emt 0:02:24]} f6 {[%emt 0:00:13]} 52. Bf2 {[%emt 0:01:37]} Kc5 {[%emt 0:01:10]} 53. Bc8 {[%emt 0:00:38]} c2+ {[%emt 0:02:14]} 0-1

[Event "WTCC-50 2018"]
[Site "Radebeul"]
[Date "2018.07.09"]
[Round "3"]
[White "Lyons, Brendan"]
[Black "Sirotkina, Nina"]
[Result "1/2-1/2"]
[ECO "B30"]
[WhiteElo "1915"]
[BlackElo "2175"]
[Annotator "NA"]
[PlyCount "30"]
[EventDate "2018.07.07"]
[EventType "team-tourn"]
[EventCountry "GER"]
[SourceTitle "playchess.com"]
[Source "ChessBase"]
[SourceQuality "1"]
[TimeControl "40/5400+30:1800+30"]

1. Nf3 {[%emt 0:00:00]} c5 {[%emt 0:00:13]} 2. e4 {[%emt 0:00:00]} Nc6 {[%emt 0:00:34]} 3. d3 {[%emt 0:00:00]} g6 {[%emt 0:01:29]} 4. g3 {[%emt 0:00:00]} Bg7 {[%emt 0:00:06]} 5. Bg2 {[%emt 0:00:00]} d6 {[%emt 0:00:46]} 6. O-O {[%emt 0:00:09]} e5 {[%emt 0:01:03]} 7. c3 {[%emt 0:00:38]} Nge7 {[%emt 0:00:19]} 8. a3 {[%emt 0:00:23]} a5 {[%emt 0:08:42]} 9. a4 {[%emt 0:00:05]} O-O {[%emt 0:01:13]} 10. Na3 {[%emt 0:00:50]} h6 {[%emt 0:05:10]} 11. Nb5 {[%emt 0:12:03]} Be6 {[%emt 0:08:23]} 12. Nd2 {[%emt 0:14:54]} Na7 {[%emt 0:13:13]} 13. Na3 {[%emt 0:10:03]} Qc7 {[%emt 0:05:27]} 14. f4 {[%emt 0:08:56]} exf4 {[%emt 0:05:34]} 15. gxf4 {[%emt 0:03:52]} f5 {[%emt 0:02:13]} 1/2-1/2